fUST/lending_fUST_20240229
["ID","MTS","AMOUNT","RATE_DAILY","PERIOD"]
[315607413,1709140243624,-10394.14,0.00019726,2]
[315607414,1709140243634,-675.6,0.00019726,2]
[315607415,1709140243644,-1142.52,0.00019726,2]
[315607416,1709140243654,-1658.62,0.00019726,2]
[315607417,1709140243665,-1511.06,0.00019726,2]
[315607418,1709140243675,-1184.02,0.00019726,2]
[315607419,1709140243687,-500.0,0.00019726,2]
[315607420,1709140243700,-500.0,0.00019726,2]
[315607421,1709140243711,-1197.06,0.00019726,2]
[315607422,1709140243722,-783.27,0.00019726,2]
[315607423,1709140243733,-624.65,0.00019726,2]
[315607425,1709140243744,-4329.36,0.00019726,2]
[315607427,1709140243754,-300.0,0.000199,8]
[315607430,1709140243771,-500.0,0.00019999,2]
[315607432,1709140243781,-500.0,0.00019999,2]
[315607433,1709140243791,-500.0,0.00019999,2]
[315607435,1709140243802,-500.0,0.00019999,2]
[315607438,1709140243813,-500.0,0.00019999,2]
[315607439,1709140243823,-500.0,0.00019999,2]
[315607441,1709140243833,-157.78235975,0.00019999,2]
[315607443,1709140243843,-11308.82838248,0.0002,2]
[315607445,1709140243853,-500.0,0.0002,2]
[315607447,1709140243863,-588.76,0.0002,2]
[315607450,1709140243874,-602.36743357,0.0002,2]
[315607452,1709140243884,-1061.51,0.0002,2]
[315607455,1709140243894,-500.0,0.0002,2]
[315607458,1709140243904,-722.81,0.0002,2]
[315607461,1709140243916,-500.0,0.0002,2]
[315607463,1709140243926,-5257.15969668,0.0002,2]
[315607465,1709140243937,-878.16,0.0002,2]
[315607467,1709140243948,-192.35357486,0.0002,2]
[315607469,1709140243960,-2038.08,0.0002,2]
[315607472,1709140243975,-643.32,0.0002,2]
[315607474,1709140243984,-632.70903184,0.0002,2]
[315607476,1709140243994,-288.87,0.0002,2]
[315607478,1709140244003,-1105.15,0.0002,2]
[315607480,1709140244012,-7969.31,0.0002,2]
[315607482,1709140244022,-1368.13,0.0002,2]
[315607485,1709140244031,-500.0,0.0002,2]
[315607487,1709140244041,-500.0,0.0002,2]
[315607490,1709140244052,-217.85395828,0.0002,2]
[315607491,1709140244062,-565.03,0.0002,2]
[315607493,1709140244074,-512.63,0.0002,2]
[315607495,1709140244084,-3390.49,0.0002,2]
[315607497,1709140244094,-500.0,0.0002,2]
[315607499,1709140244104,-933.35,0.0002,2]
[315607501,1709140244113,-500.0,0.0002,2]
[315607503,1709140244123,-875.07,0.0002,2]
[315607505,1709140244132,-3134.15604659,0.0002,2]
[315607514,1709140244219,-7259.98395341,0.0002,2]
[315607516,1709140244230,-675.6,0.0002,2]
[315607518,1709140244240,-740.78626354,0.0002,2]
[315607521,1709140244252,-401.73373646,0.0002,2]
[315607523,1709140244261,-1658.62,0.0002,2]
[315607525,1709140244279,-1511.06,0.0002,2]
[315607527,1709140244290,-1184.02,0.0002,2]
[315607529,1709140244300,-500.0,0.0002,2]
[315607531,1709140244310,-500.0,0.0002,2]
[315607533,1709140244321,-1197.06,0.0002,2]
[315607534,1709140244331,-783.27,0.0002,2]
[315607537,1709140244343,-624.65,0.0002,2]
[315607539,1709140244354,-457.77052377,0.0002,2]
[315607540,1709140244365,-4329.36,0.0002,2]
[315607543,1709140244376,-626.06990911,0.0002005,6]
[315607545,1709140244386,-166.666666,0.00020076,2]
[315607547,1709140244398,-153.0,0.00020146,2]
[315607548,1709140244409,-1000.0,0.00020197,2]
[315607550,1709140244421,-500.0,0.00020273,2]
[315607552,1709140244431,-588.76,0.00020273,2]
[315607555,1709140244442,-1061.51,0.00020273,2]
[315607556,1709140244457,-500.0,0.00020273,2]
[315607559,1709140244468,-722.81,0.00020273,2]
[315607561,1709140244480,-500.0,0.00020273,2]
[315607563,1709140244492,-878.16,0.00020273,2]
[315607565,1709140244503,-2038.08,0.00020273,2]
[315607567,1709140244515,-643.32,0.00020273,2]
[315607569,1709140244526,-1105.15,0.00020273,2]
[315607571,1709140244537,-7969.31,0.00020273,2]
[315607573,1709140244549,-1368.13,0.00020273,2]
[315607574,1709140244560,-500.0,0.00020273,2]
[315607576,1709140244571,-500.0,0.00020273,2]
[315607578,1709140244583,-565.03,0.00020273,2]
[315607580,1709140244595,-512.63,0.00020273,2]
[315607582,1709140244606,-3390.49,0.00020273,2]
[315607584,1709140244618,-616.47517877,0.00020273,2]
[315607586,1709140244628,-933.35,0.00020273,2]
[315607588,1709140244640,-334.14268574,0.00020273,2]
[315607590,1709140244651,-875.07,0.00020273,2]
[315607592,1709140244665,-10394.14,0.00020273,2]
[315607594,1709140244676,-675.6,0.00020273,2]
[315607596,1709140244690,-1142.52,0.00020273,2]
[315607597,1709140244702,-1658.62,0.00020273,2]
[315607599,1709140244713,-1511.06,0.00020273,2]
[315607601,1709140244723,-1184.02,0.00020273,2]
[315607603,1709140244734,-500.0,0.00020273,2]
[315607605,1709140244744,-500.0,0.00020273,2]
[315607607,1709140244754,-1197.06,0.00020273,2]
[315607609,1709140244765,-783.27,0.00020273,2]
[315607611,1709140244775,-624.65,0.00020273,2]
[315607613,1709140244785,-4329.36,0.00020273,2]
[315607615,1709140244796,-12965.4401992,0.00020299,3]
[315607617,1709140244805,-1000.0,0.00020299,5]
[315607619,1709140244815,-897.86200983,0.00020299,2]
[315607621,1709140244825,-527.21927073,0.00020299,2]
[315607623,1709140244834,-1000.0,0.00020299,5]
[315607625,1709140244844,-1000.0,0.00020299,5]
[315607627,1709140244853,-1000.0,0.00020299,5]
[315607629,1709140244863,-1857.8767479,0.00020299,2]
[315607631,1709140244874,-3891.65251197,0.00020299,2]
[315607633,1709140244884,-484.03730193,0.00020299,2]
[315607635,1709140244896,-16339.33377606,0.00020299,2]
[315607637,1709140244908,-1000.0,0.00020299,5]
[315607639,1709140244918,-1000.0,0.00020299,5]
[315607642,1709140244928,-361.99703934,0.00020299,2]
[315607644,1709140244937,-470.06697518,0.00020299,2]
[315607646,1709140244948,-204.71835389,0.00020307,2]
[315607647,1709140244960,-295.33876898,0.00020307,2]
[315607649,1709140244971,-584.3098698,0.00020307,2]
[315607652,1709140244981,-250.59990447,0.00020307,2]
[315607653,1709140244991,-155.18622347,0.00020307,2]
[315607655,1709140245001,-513.83428987,0.00020307,3]
[315607657,1709140245011,-364.98652775,0.00020307,2]
[315607659,1709140245022,-209.68514242,0.00020307,2]
[315607661,1709140245031,-326.34577349,0.00020307,2]
[315607663,1709140245041,-175.9557257,0.00020307,2]
[315607665,1709140245051,-207.50951058,0.00020307,2]
[315607667,1709140245061,-205.72181011,0.00020307,2]
[315607669,1709140245070,-412.00388915,0.00020307,2]
[315607671,1709140245081,-181.46355375,0.00020307,2]
[315607673,1709140245096,-248.65763738,0.00020307,2]
[315607675,1709140245106,-748.30248392,0.00020307,2]
[315607678,1709140245117,-226.25047854,0.00020307,2]
[315607679,1709140245128,-193.22255468,0.00020307,2]
[315607681,1709140245139,-224.316234,0.00020307,2]
[315607683,1709140245150,-197.5903061,0.00020307,2]
[315607685,1709140245160,-200.0,0.00020307,2]
[315607687,1709140245171,-201.68812575,0.00020307,2]
[315607689,1709140245181,-262.57067034,0.00020307,2]
[315607691,1709140245192,-162.08072522,0.00020307,2]
[315607693,1709140245206,-202.5785112,0.00020307,2]
[315607696,1709140245218,-206.09863426,0.00020307,2]
[315607697,1709140245228,-169.82382911,0.00020307,2]
[315607699,1709140245238,-169.05865888,0.00020307,2]
[315607701,1709140245249,-1463.61214084,0.00020307,2]
[315607703,1709140245260,-262.09644911,0.00020307,2]
[315607705,1709140245277,-397.73693479,0.00020307,7]
[315607707,1709140245294,-300.82270687,0.00020307,2]
[315607710,1709140245309,-200.06698349,0.00020307,2]
[315607712,1709140245320,-200.8401255,0.00020307,2]
[315607713,1709140245330,-200.4969484,0.00020307,2]
[315607715,1709140245342,-160.38397635,0.00020307,2]
[315607717,1709140245352,-158.78727562,0.00020307,2]
[315607720,1709140245363,-169.8856446,0.00020307,2]
[315607722,1709140245374,-305.93534606,0.00020307,2]
[315607724,1709140245384,-277.91950418,0.00020307,2]
[315607725,1709140245394,-1437.45088074,0.00020307,2]
[315607727,1709140245403,-563.11823056,0.00020307,2]
[315607729,1709140245413,-2116.54579475,0.00020307,2]
[315607731,1709140245423,-229.9481738,0.00020307,2]
[315607733,1709140245432,-298.11205349,0.00020307,2]
[315607735,1709140245442,-157.73861463,0.00020307,2]
[315607737,1709140245456,-209.97884598,0.00020307,2]
[315607739,1709140245466,-233.66514653,0.00020307,2]
[315607741,1709140245476,-212.22758617,0.00020307,2]
[315607743,1709140245485,-173.14715211,0.00020307,2]
[315607745,1709140245495,-161.62783288,0.00020307,2]
[315607747,1709140245506,-280.291935,0.00020307,2]
[315607749,1709140245516,-280.291935,0.00020307,2]
[315607751,1709140245526,-344.33041305,0.00020307,2]
[315607753,1709140245537,-155.19554639,0.00020308,2]
[315607755,1709140245550,-4696.48821692,0.00020308,2]
[315607758,1709140245571,-50000.0,0.00020309,5]
[315607760,1709140245580,-50000.0,0.00020309,5]
[315607762,1709140245590,-50000.0,0.00020309,5]
[315607764,1709140245600,-50000.0,0.00020309,5]
[315607765,1709140245610,-50000.0,0.00020309,3]
[315607768,1709140245619,-50000.0,0.00020309,3]
[315607770,1709140245629,-9508.76518658,0.00020309,3]
[315607774,1709140245659,-30083.13530215,0.00020309,3]
[315607776,1709140245670,-10408.09951127,0.00020309,3]
[315607778,1709140245680,-3670.40049623,0.00020309,3]
[315607781,1709140245698,-339.64638281,0.00020307,2]
[315607783,1709140245716,-2118.17248744,0.00020307,2]
[315607785,1709140245726,-12442.3119824,0.00020309,3]
[315607788,1709140245738,-14499.96110603,0.00020309,3]
[315607790,1709140245750,-4954.163,0.00020309,3]
[315607792,1709140245762,-5258.81965016,0.00020309,3]
[315607817,1709140245878,-859.68153428,0.00020309,3]
[315607821,1709140245891,-5018.61224055,0.00020309,3]
[315607825,1709140245910,-1479.61017428,0.00019716,3]
[315607828,1709140245922,-17461.66982572,0.00019716,3]
[315607830,1709140245931,-3296.04999035,0.00020309,3]
[315607833,1709140245940,-50000.0,0.00020309,3]
[315607835,1709140245949,-16925.60703518,0.00020309,3]
[315607920,1709140246822,-0.49525507,0.00020299,2]
[315607923,1709140246834,-654.90705577,0.00020299,2]
[315607925,1709140246846,-345.58677069,0.00020299,2]
[315612973,1709141020398,1000.0,0.00021,21]
[315613011,1709141268694,262.991557,0.00017023,2]
[315613056,1709141434087,22667.1679955,0.00016644,2]
[315613147,1709141439556,-155.15360207,0.00017476,2]
[315613148,1709141439565,-984.7268785,0.00017476,2]
[315613149,1709141439578,-1473.09199175,0.00017476,2]
[315613150,1709141439588,-15232.41076204,0.00017477,2]
[315613151,1709141439601,-6623.9944859,0.00017483,2]
[315613152,1709141439611,-8494.7094951,0.00017605,2]
[315613153,1709141439620,-204.54054947,0.000179,2]
[315613154,1709141439630,-5444.5321749,0.00018,2]
[315613155,1709141439642,-204.54054947,0.00018263,2]
[315613156,1709141439651,-204.54054947,0.00018626,2]
[315613158,1709141439660,-605.76641073,0.000189,2]
[315613160,1709141439671,-204.54054947,0.00018989,2]
[315613162,1709141439684,-169.3,0.00019168,3]
[315613164,1709141439694,-507.94,0.00019168,3]
[315613166,1709141439705,-484.6448808,0.00019178,2]
[315613168,1709141439714,-552.19583959,0.00019178,2]
[315613170,1709141439723,-500.0,0.00019178,2]
[315613171,1709141439733,-500.0,0.00019178,2]
[315613173,1709141439742,-528.13257131,0.00019178,2]
[315613175,1709141439753,-509.15,0.00019178,2]
[315613178,1709141439763,-500.0,0.00019178,2]
[315613179,1709141439772,-500.0,0.00019178,2]
[315613181,1709141439782,-500.0,0.00019178,2]
[315613183,1709141439792,-500.0,0.00019178,2]
[315613185,1709141439801,-501.60410199,0.00019178,2]
[315613187,1709141439810,-500.0,0.00019178,2]
[315613189,1709141439819,-500.0,0.00019178,2]
[315613190,1709141439828,-368.65578206,0.00019178,2]
[315613191,1709141439838,-500.0,0.00019178,2]
[315613192,1709141439847,-178.11388434,0.00019178,2]
[315613193,1709141439856,-500.0,0.00019178,2]
[315613195,1709141439865,-500.0,0.00019178,2]
[315613197,1709141439875,-500.0,0.00019178,2]
[315613199,1709141439885,-504.92153729,0.00019178,2]
[315613201,1709141439895,-500.0,0.00019178,2]
[315613203,1709141439905,-500.0,0.00019178,2]
[315613204,1709141439915,-560.61513212,0.00019178,2]
[315613206,1709141439928,-502.11011131,0.00019178,2]
[315613208,1709141439939,-500.0,0.00019178,2]
[315613210,1709141439949,-500.0,0.00019178,2]
[315613212,1709141439959,-500.23477848,0.00019178,2]
[315613214,1709141439968,-397.61567573,0.00019178,2]
[315613217,1709141439978,-507.68334626,0.00019178,2]
[315613220,1709141439988,-500.0,0.00019178,2]
[315613222,1709141439998,-500.0,0.00019178,2]
[315613224,1709141440008,-500.0,0.00019178,2]
[315613226,1709141440017,-500.0,0.00019178,2]
[315613228,1709141440027,-500.0,0.00019178,2]
[315613230,1709141440037,-500.0,0.00019178,2]
[315613233,1709141440047,-500.0,0.00019178,2]
[315613236,1709141440057,-500.0,0.00019178,2]
[315613239,1709141440067,-500.0,0.00019178,2]
[315613241,1709141440076,-500.0,0.00019178,2]
[315613244,1709141440086,-500.0,0.00019178,2]
[315613246,1709141440096,-500.0,0.00019178,2]
[315613248,1709141440106,-500.0,0.00019178,2]
[315613250,1709141440115,-408.99080361,0.00019178,2]
[315613252,1709141440125,-151.0,0.00019178,2]
[315613253,1709141440136,-515.67618364,0.00019178,2]
[315613255,1709141440146,-518.90331264,0.00019178,2]
[315613257,1709141440157,-500.08951963,0.00019178,2]
[315613258,1709141440167,-824.51,0.00019178,2]
[315613260,1709141440181,-824.51,0.00019178,2]
[315613261,1709141440192,-824.51,0.00019178,2]
[315613263,1709141440202,-500.0,0.00019178,2]
[315613265,1709141440212,-500.0,0.00019178,2]
[315613267,1709141440222,-500.0,0.00019178,2]
[315613269,1709141440231,-500.0,0.00019178,2]
[315613271,1709141440241,-500.0,0.00019178,2]
[315613273,1709141440251,-500.0,0.00019178,2]
[315613275,1709141440262,-500.0,0.00019178,2]
[315613277,1709141440272,-502.08691135,0.00019178,2]
[315613279,1709141440282,-500.0,0.00019178,2]
[315613281,1709141440292,-500.0,0.00019178,2]
[315613283,1709141440304,-1608.43,0.00019178,2]
[315613285,1709141440314,-500.0,0.00019178,2]
[315613287,1709141440324,-500.0,0.00019178,2]
[315613289,1709141440335,-209.21007188,0.00019178,2]
[315613291,1709141440344,-152.70981236,0.00019178,2]
[315613293,1709141440355,-670.85,0.00019178,2]
[315613294,1709141440365,-500.0,0.00019178,2]
[315613296,1709141440376,-500.0,0.00019178,2]
[315613298,1709141440387,-500.0,0.00019178,2]
[315613300,1709141440398,-256.30798704,0.00019178,2]
[315613302,1709141440409,-772.93,0.00019178,2]
[315613304,1709141440419,-977.3,0.00019178,2]
[315613306,1709141440434,-500.0,0.00019178,2]
[315613308,1709141440445,-500.0,0.00019178,2]
[315613310,1709141440455,-500.0,0.00019178,2]
[315613312,1709141440466,-500.0,0.00019178,2]
[315613314,1709141440476,-500.93234217,0.00019178,2]
[315613316,1709141440486,-336.834071,0.00019178,2]
[315613318,1709141440495,-500.0,0.00019178,2]
[315613331,1709141440624,-500.0,0.00019178,2]
[315613333,1709141440635,-500.0,0.00019178,2]
[315613335,1709141440647,-500.0,0.00019178,2]
[315613337,1709141440658,-500.0,0.00019178,2]
[315613339,1709141440667,-500.0,0.00019178,2]
[315613341,1709141440680,-253.03741308,0.00019178,2]
[315613343,1709141440689,-500.0,0.00019178,2]
[315613345,1709141440699,-500.0,0.00019178,2]
[315613347,1709141440710,-500.0,0.00019178,2]
[315613349,1709141440720,-500.0,0.00019178,2]
[315613351,1709141440730,-500.0,0.00019178,2]
[315613353,1709141440739,-500.0,0.00019178,2]
[315613355,1709141440750,-500.0,0.00019178,2]
[315613357,1709141440760,-500.0,0.00019178,2]
[315613359,1709141440769,-500.0,0.00019178,2]
[315613362,1709141440779,-500.0,0.00019178,2]
[315613364,1709141440788,-590.59055546,0.00019178,2]
[315613367,1709141440799,-500.35101391,0.00019178,2]
[315613369,1709141440808,-500.0,0.00019178,2]
[315613371,1709141440818,-500.0,0.00019178,2]
[315613373,1709141440828,-253.29640782,0.00019178,2]
[315613377,1709141440838,-500.0,0.00019178,2]
[315613379,1709141440849,-160.80462119,0.00019178,2]
[315613381,1709141440859,-500.0,0.00019178,2]
[315613383,1709141440869,-500.0,0.00019178,2]
[315613385,1709141440878,-500.0,0.00019178,2]
[315613387,1709141440888,-271.91794651,0.00019178,2]
[315613389,1709141440898,-500.0,0.00019178,2]
[315613391,1709141440907,-500.0,0.00019178,2]
[315613393,1709141440917,-500.0,0.00019178,2]
[315613395,1709141440930,-500.0,0.00019178,2]
[315613397,1709141440939,-500.59452776,0.00019178,2]
[315613398,1709141440950,-500.0,0.00019178,2]
[315613400,1709141440959,-500.0,0.00019178,2]
[315613402,1709141440969,-500.0,0.00019178,2]
[315613404,1709141440979,-983.21,0.00019178,2]
[315613406,1709141440989,-500.0,0.00019178,2]
[315613408,1709141440999,-503.19472331,0.00019178,2]
[315613411,1709141441009,-694.78,0.00019178,2]
[315613413,1709141441019,-500.0,0.00019178,2]
[315613415,1709141441029,-500.0,0.00019178,2]
[315613416,1709141441038,-500.0,0.00019178,2]
[315613418,1709141441048,-500.0,0.00019178,2]
[315613421,1709141441058,-500.0,0.00019178,2]
[315613422,1709141441068,-500.0,0.00019178,2]
[315613424,1709141441078,-500.0,0.00019178,2]
[315613427,1709141441088,-500.0,0.00019178,2]
[315613429,1709141441098,-500.0,0.00019178,2]
[315613431,1709141441109,-3528.99,0.00019178,2]
[315613433,1709141441119,-298.05466901,0.00019178,2]
[315613435,1709141441129,-500.0,0.00019178,2]
[315613437,1709141441139,-500.0,0.00019178,2]
[315613439,1709141441149,-500.0,0.00019178,2]
[315613441,1709141441158,-218.36768508,0.00019178,2]
[315613443,1709141441167,-1434.15,0.00019178,2]
[315613444,1709141441179,-500.0,0.00019178,2]
[315613446,1709141441189,-500.0,0.00019178,2]
[315613448,1709141441199,-210.59816599,0.00019178,2]
[315613450,1709141441209,-500.0,0.00019178,2]
[315613452,1709141441219,-500.0,0.00019178,2]
[315613454,1709141441228,-500.0,0.00019178,2]
[315613456,1709141441238,-612.4953323,0.00019178,2]
[315613458,1709141441247,-312.75001907,0.00019178,2]
[315613460,1709141441257,-500.0,0.00019178,2]
[315613462,1709141441266,-500.0,0.00019178,2]
[315613464,1709141441276,-242.96684262,0.00019178,2]
[315613466,1709141441285,-500.88794162,0.00019178,2]
[315613468,1709141441295,-500.0,0.00019178,2]
[315613470,1709141441305,-1388.22,0.00019178,2]
[315613472,1709141441315,-298.44393123,0.00019178,2]
[315613474,1709141441324,-500.0,0.00019178,2]
[315613476,1709141441334,-500.0,0.00019178,2]
[315613478,1709141441343,-500.0,0.00019178,2]
[315613480,1709141441353,-500.768202,0.00019178,2]
[315613482,1709141441362,-500.0,0.00019178,2]
[315613484,1709141441371,-500.0,0.00019178,2]
[315613486,1709141441380,-500.0,0.00019178,2]
[315613488,1709141441389,-501.87966091,0.00019178,2]
[315613490,1709141441399,-500.0,0.00019178,2]
[315613492,1709141441408,-1908.68,0.00019178,2]
[315613494,1709141441418,-500.0,0.00019178,2]
[315613496,1709141441430,-318.14686386,0.00019178,2]
[315613498,1709141441439,-500.0,0.00019178,2]
[315613500,1709141441448,-500.0,0.00019178,2]
[315613501,1709141441457,-1300.63,0.00019178,2]
[315613504,1709141441467,-500.0,0.00019178,2]
[315613506,1709141441477,-500.0,0.00019178,2]
[315613507,1709141441487,-898.86,0.00019178,2]
[315613509,1709141441496,-500.0,0.00019178,2]
[315613511,1709141441506,-500.60797571,0.00019178,2]
[315613513,1709141441515,-503.01168124,0.00019178,2]
[315613515,1709141441525,-11187.92,0.00019178,2]
[315613517,1709141441533,-302.1536889,0.00019178,2]
[315613519,1709141441543,-500.0,0.00019178,2]
[315613521,1709141441553,-500.96626582,0.00019178,2]
[315613522,1709141441562,-508.49654899,0.00019178,2]
[315613524,1709141441571,-500.0,0.00019178,2]
[315613526,1709141441581,-5538.15,0.00019178,2]
[315613527,1709141441591,-500.0,0.00019178,2]
[315613529,1709141441604,-1424.16,0.00019178,2]
[315613531,1709141441614,-500.0,0.00019178,2]
[315613533,1709141441623,-501.09763869,0.00019178,2]
[315613534,1709141441633,-903.12,0.00019178,2]
[315613536,1709141441645,-500.0,0.00019178,2]
[315613538,1709141441655,-500.0,0.00019178,2]
[315613539,1709141441665,-2336.98,0.00019178,2]
[315613540,1709141441680,-645.12747004,0.00019178,2]
[315613542,1709141441690,-500.0,0.00019178,2]
[315613544,1709141441701,-500.0,0.00019178,2]
[315613546,1709141441713,-500.0,0.00019178,2]
[315613547,1709141441728,-500.0,0.00019178,2]
[315613548,1709141441738,-500.0,0.00019178,2]
[315613550,1709141441747,-500.0,0.00019178,2]
[315613552,1709141441757,-1308.22,0.00019178,2]
[315613554,1709141441769,-672.62,0.00019178,2]
[315613556,1709141441778,-500.0,0.00019178,2]
[315613558,1709141441787,-426.64264298,0.00019178,2]
[315613560,1709141441796,-500.0,0.00019178,2]
[315613562,1709141441806,-500.0,0.00019178,2]
[315613564,1709141441816,-942.2,0.00019178,2]
[315613566,1709141441825,-500.0,0.00019178,2]
[315613568,1709141441834,-500.0,0.00019178,2]
[315613569,1709141441844,-500.0,0.00019178,2]
[315613571,1709141441853,-500.0,0.00019178,2]
[315613573,1709141441863,-500.0,0.00019178,2]
[315613575,1709141441874,-500.0,0.00019178,2]
[315613577,1709141441883,-500.0,0.00019178,2]
[315613580,1709141441894,-1688.91,0.00019178,2]
[315613582,1709141441904,-500.0,0.00019178,2]
[315613583,1709141441913,-226.05511992,0.00019178,2]
[315613585,1709141441924,-500.0,0.00019178,2]
[315613588,1709141441937,-500.0,0.00019178,2]
[315613590,1709141441947,-500.0,0.00019178,2]
[315613591,1709141441957,-500.45944832,0.00019178,2]
[315613593,1709141441966,-500.0,0.00019178,2]
[315613595,1709141441976,-337.95024407,0.00019178,2]
[315613597,1709141441985,-500.0,0.00019178,2]
[315613599,1709141441994,-500.0,0.00019178,2]
[315613601,1709141442004,-501.40336033,0.00019178,2]
[315613603,1709141442015,-500.0,0.00019178,2]
[315613605,1709141442024,-262.36066584,0.00019178,2]
[315613607,1709141442033,-500.0,0.00019178,2]
[315613609,1709141442043,-500.42379287,0.00019178,2]
[315613611,1709141442053,-11055.14,0.00019178,2]
[315613613,1709141442063,-558.98,0.00019178,2]
[315613615,1709141442072,-500.0,0.00019178,2]
[315613617,1709141442082,-500.0,0.00019178,2]
[315613619,1709141442092,-500.0,0.00019178,2]
[315613621,1709141442102,-1715.83,0.00019178,2]
[315613623,1709141442112,-500.0,0.00019178,2]
[315613625,1709141442121,-695.04713142,0.00019178,2]
[315613627,1709141442132,-166.666666,0.00019178,2]
[315613629,1709141442143,-163.811675,0.00019178,2]
[315613631,1709141442152,-191.745636,0.00019178,2]
[315613633,1709141442162,-153.0,0.000193,2]
[315613635,1709141442171,-204.54054947,0.00019352,2]
[315613637,1709141442185,-824.51,0.00019451,2]
[315613639,1709141442195,-500.0,0.00019452,2]
[315613641,1709141442205,-500.0,0.00019452,2]
[315613643,1709141442214,-509.15,0.00019452,2]
[315613645,1709141442224,-636.87754851,0.00019452,2]
[315613647,1709141442233,-503.07925048,0.00019452,2]
[315613649,1709141442242,-500.0,0.00019452,2]
[315613651,1709141442252,-427.63995302,0.00019452,2]
[315613653,1709141442262,-500.0,0.00019452,2]
[315613655,1709141442271,-500.0,0.00019452,2]
[315613657,1709141442280,-500.0,0.00019452,2]
[315613659,1709141442290,-500.0,0.00019452,2]
[315613661,1709141442299,-500.0,0.00019452,2]
[315613663,1709141442308,-500.0,0.00019452,2]
[315613665,1709141442318,-500.0,0.00019452,2]
[315613667,1709141442328,-378.73239261,0.00019452,2]
[315613668,1709141442337,-500.0,0.00019452,2]
[315613669,1709141442346,-500.0,0.00019452,2]
[315613670,1709141442356,-504.37178054,0.00019452,2]
[315613671,1709141442366,-500.0,0.00019452,2]
[315613672,1709141442375,-500.0,0.00019452,2]
[315613674,1709141442384,-500.0,0.00019452,2]
[315613675,1709141442394,-500.0,0.00019452,2]
[315613677,1709141442404,-500.0,0.00019452,2]
[315613680,1709141442414,-500.0,0.00019452,2]
[315613682,1709141442425,-500.0,0.00019452,2]
[315613684,1709141442439,-500.0,0.00019452,2]
[315613686,1709141442448,-500.0,0.00019452,2]
[315613687,1709141442458,-500.0,0.00019452,2]
[315613690,1709141442468,-500.0,0.00019452,2]
[315613692,1709141442479,-185.66266711,0.00019452,2]
[315613705,1709141442610,-314.33733289,0.00019452,2]
[315613707,1709141442620,-500.0,0.00019452,2]
[315613708,1709141442630,-1608.43,0.00019452,2]
[315613711,1709141442640,-501.46901324,0.00019452,2]
[315613713,1709141442651,-500.0,0.00019452,2]
[315613714,1709141442660,-428.60778675,0.00019452,2]
[315613717,1709141442673,-242.24221325,0.00019452,2]
[315613719,1709141442688,-500.0,0.00019452,2]
[315613721,1709141442698,-772.93,0.00019452,2]
[315613723,1709141442707,-977.3,0.00019452,2]
[315613725,1709141442717,-500.0,0.00019452,2]
[315613727,1709141442726,-500.0,0.00019452,2]
[315613729,1709141442736,-500.0,0.00019452,2]
[315613731,1709141442745,-500.63595938,0.00019452,2]
[315613733,1709141442755,-504.21335184,0.00019452,2]
[315613735,1709141442764,-500.0,0.00019452,2]
[315613737,1709141442774,-500.0,0.00019452,2]
[315613739,1709141442783,-500.0,0.00019452,2]
[315613741,1709141442795,-500.0,0.00019452,2]
[315613743,1709141442805,-500.0,0.00019452,2]